[Event "*** Titled Tuesday 3|2 Blitz (Early)"]
[Site "Chess.com"]
[Date "2016.11.01"]
[Round "3"]
[White "Anton_Demchenko"]
[Black "jk13"]
[Result "0-1"]
[WhiteElo "2620"]
[BlackElo "2484"]
[TimeControl "180+2"]
[EndTime "11:37:16 PDT"]
[Termination "jk13 won on time"]

1. e4 {[%clk 0:03:01.9]} 1... e5 {[%clk 0:03:00.9]} 2. Nf3 {[%clk 0:03:01.2]}
2... Nc6 {[%clk 0:03:02.4]} 3. Bc4 {[%clk 0:03:02.7]} 3... Bc5 {[%clk
0:03:02.6]} 4. d3 {[%clk 0:03:03.3]} 4... Nf6 {[%clk 0:03:04]} 5. O-O {[%clk
0:03:04.3]} 5... O-O {[%clk 0:03:05.5]} 6. a4 {[%clk 0:03:04]} 6... Re8 {[%clk
0:03:02.8]} 7. c3 {[%clk 0:03:02.1]} 7... d5 {[%clk 0:03:03.8]} 8. exd5 {[%clk
0:03:02.5]} 8... Nxd5 {[%clk 0:03:05.7]} 9. b4 {[%clk 0:02:59.2]} 9... Bf8
{[%clk 0:03:04.3]} 10. Qb3 {[%clk 0:03:00.1]} 10... Be6 {[%clk 0:02:58.7]} 11.
Ng5 {[%clk 0:03:00.4]} 11... a6 {[%clk 0:02:10.8]} 12. Nxe6 {[%clk 0:02:55.5]}
12... fxe6 {[%clk 0:02:12.7]} 13. Nd2 {[%clk 0:02:55.7]} 13... Nce7 {[%clk
0:02:03.9]} 14. Ne4 {[%clk 0:02:54.9]} 14... Ng6 {[%clk 0:02:04.7]} 15. g3
{[%clk 0:02:49.5]} 15... c6 {[%clk 0:02:04.2]} 16. a5 {[%clk 0:02:48.8]} 16...
h6 {[%clk 0:02:00.5]} 17. Be3 {[%clk 0:02:44.8]} 17... Kh8 {[%clk 0:01:56.6]}
18. Rae1 {[%clk 0:02:37.6]} 18... Qd7 {[%clk 0:01:56.8]} 19. Qd1 {[%clk
0:02:23.2]} 19... Qf7 {[%clk 0:01:53.9]} 20. Bc5 {[%clk 0:02:13.6]} 20... Rad8
{[%clk 0:01:50.3]} 21. f3 {[%clk 0:01:59.8]} 21... Qf5 {[%clk 0:01:50.7]} 22.
Qe2 {[%clk 0:01:57.9]} 22... Be7 {[%clk 0:01:44.9]} 23. h4 {[%clk 0:01:55.9]}
23... Rf8 {[%clk 0:01:28]} 24. Qh2 {[%clk 0:01:54.9]} 24... Rf7 {[%clk
0:01:00.2]} 25. Kh1 {[%clk 0:01:51.2]} 25... Nf8 {[%clk 0:00:59.6]} 26. Kg2
{[%clk 0:00:53.1]} 26... Nd7 {[%clk 0:00:58.5]} 27. Bg1 {[%clk 0:00:52.4]} 27...
Rdf8 {[%clk 0:00:55.8]} 28. Bb3 {[%clk 0:00:36.6]} 28... Qh5 {[%clk 0:00:53.5]}
29. Bd1 {[%clk 0:00:37]} 29... Qg6 {[%clk 0:00:52.6]} 30. Kh1 {[%clk 0:00:36.3]}
30... N7f6 {[%clk 0:00:49.4]} 31. Qd2 {[%clk 0:00:11.9]} 31... Nxe4 {[%clk
0:00:39.2]} 32. dxe4 {[%clk 0:00:12.5]} 32... Nf6 {[%clk 0:00:39.7]} 33. Bh2
{[%clk 0:00:08.8]} 33... Nh5 {[%clk 0:00:33]} 34. Qg2 {[%clk 0:00:09.7]} 34...
Rd8 {[%clk 0:00:29.8]} 35. Bc2 {[%clk 0:00:07.4]} 35... Bf8 {[%clk 0:00:26.9]}
36. Rd1 {[%clk 0:00:08.5]} 36... Rfd7 {[%clk 0:00:27.8]} 37. Rxd7 {[%clk
0:00:09.4]} 37... Rxd7 {[%clk 0:00:29.7]} 38. Rd1 {[%clk 0:00:10.9]} 38... Qe8
{[%clk 0:00:26.7]} 39. Qe2 {[%clk 0:00:11.1]} 39... Qd8 {[%clk 0:00:25.3]} 40.
Rxd7 {[%clk 0:00:11.4]} 40... Qxd7 {[%clk 0:00:27.2]} 41. Kg2 {[%clk 0:00:12.9]}
41... Kg8 {[%clk 0:00:27.6]} 42. Bg1 {[%clk 0:00:13.3]} 42... Kf7 {[%clk
0:00:27.3]} 43. Qd3 {[%clk 0:00:13.3]} 43... Qxd3 {[%clk 0:00:27.5]} 44. Bxd3
{[%clk 0:00:15.2]} 44... Bd6 {[%clk 0:00:28.8]} 45. Be3 {[%clk 0:00:14.6]} 45...
Kf6 {[%clk 0:00:29.2]} 46. Be2 {[%clk 0:00:14.7]} 46... Kf7 {[%clk 0:00:29.5]}
47. Bb6 {[%clk 0:00:15.7]} 47... Ke7 {[%clk 0:00:29.9]} 48. Kf2 {[%clk
0:00:15.2]} 48... Kf7 {[%clk 0:00:31.1]} 49. Kg2 {[%clk 0:00:15.8]} 49... Ke7
{[%clk 0:00:32.4]} 50. Ba7 {[%clk 0:00:16.4]} 50... Kf7 {[%clk 0:00:33.5]} 51.
Be3 {[%clk 0:00:17.3]} 51... Ke7 {[%clk 0:00:34.4]} 52. Bd2 {[%clk 0:00:18.9]}
52... Kf7 {[%clk 0:00:35.2]} 53. f4 {[%clk 0:00:18.5]} 53... Nf6 {[%clk
0:00:35.8]} 54. Kf3 {[%clk 0:00:18.7]} 54... h5 {[%clk 0:00:34]} 55. c4 {[%clk
0:00:18.9]} 55... g6 {[%clk 0:00:33.8]} 56. b5 {[%clk 0:00:18.7]} 56... Nd7
{[%clk 0:00:31]} 57. Bc3 {[%clk 0:00:17.5]} 57... Ke7 {[%clk 0:00:30.1]} 58. Ke3
{[%clk 0:00:15.1]} 58... Bc5+ {[%clk 0:00:29.6]} 59. Kd3 {[%clk 0:00:13.1]}
59... Kd6 {[%clk 0:00:31.1]} 60. f5 {[%clk 0:00:13.3]} 60... exf5 {[%clk
0:00:26.4]} 61. exf5 {[%clk 0:00:14.7]} 61... gxf5 {[%clk 0:00:27]} 62. Bxh5
{[%clk 0:00:15.9]} 62... Bf2 {[%clk 0:00:26.5]} 63. Bg6 {[%clk 0:00:13.1]} 63...
Ke6 {[%clk 0:00:23.2]} 64. bxa6 {[%clk 0:00:12.1]} 64... bxa6 {[%clk 0:00:23.7]}
65. h5 {[%clk 0:00:12.8]} 65... Bxg3 {[%clk 0:00:24.4]} 66. h6 {[%clk
0:00:14.2]} 66... Nf8 {[%clk 0:00:19.3]} 67. Be8 {[%clk 0:00:12.7]} 67... c5
{[%clk 0:00:19.7]} 68. Bc6 {[%clk 0:00:13.2]} 68... Bf4 {[%clk 0:00:19.2]} 69.
Bb7 {[%clk 0:00:12.3]} 69... Bxh6 {[%clk 0:00:19.8]} 70. Bxa6 {[%clk 0:00:13]}
70... Kd6 {[%clk 0:00:21.4]} 71. Bc8 {[%clk 0:00:12.1]} 71... e4+ {[%clk
0:00:21.2]} 72. Kc2 {[%clk 0:00:12.1]} 72... f4 {[%clk 0:00:22.3]} 73. a6 {[%clk
0:00:12]} 73... Nd7 {[%clk 0:00:21.2]} 74. Bxd7 {[%clk 0:00:08.6]} 74... Kc7
{[%clk 0:00:22.6]} 75. Be5+ {[%clk 0:00:07.8]} 75... Kb6 {[%clk 0:00:23.5]} 76.
Bc8 {[%clk 0:00:04]} 76... f3 {[%clk 0:00:21.7]} 77. Bb7 {[%clk 0:00:02.3]}
77... f2 {[%clk 0:00:21.5]} 0-1

[Event "*** Titled Tuesday 3|2 Blitz (Early)"]
[Site "Chess.com"]
[Date "2016.11.01"]
[Round "3"]
[White "Evgeny_Levin"]
[Black "swayamsm"]
[Result "1/2-1/2"]
[WhiteElo "2687"]
[BlackElo "2622"]
[TimeControl "180+2"]
[EndTime "11:38:10 PDT"]
[Termination "Game drawn by repetition"]

1. d4 {[%clk 0:03:02]} 1... Nf6 {[%clk 0:03:00.5]} 2. c4 {[%clk 0:03:01.9]} 2...
e6 {[%clk 0:02:51.2]} 3. Nf3 {[%clk 0:03:01.4]} 3... d5 {[%clk 0:02:45.2]} 4.
Nc3 {[%clk 0:03:01.3]} 4... Bb4 {[%clk 0:02:45.4]} 5. Bg5 {[%clk 0:03:01.1]}
5... h6 {[%clk 0:02:44.5]} 6. Bxf6 {[%clk 0:03:01.7]} 6... Qxf6 {[%clk
0:02:46.4]} 7. Qb3 {[%clk 0:03:03.2]} 7... c5 {[%clk 0:01:44.9]} 8. e3 {[%clk
0:03:01.7]} 8... Nc6 {[%clk 0:01:30.4]} 9. dxc5 {[%clk 0:02:32.9]} 9... dxc4
{[%clk 0:01:12.5]} 10. Bxc4 {[%clk 0:02:29.6]} 10... O-O {[%clk 0:01:09.9]} 11.
O-O {[%clk 0:02:28]} 11... Bxc5 {[%clk 0:01:06.4]} 12. Ne4 {[%clk 0:02:27.9]}
12... Qe7 {[%clk 0:01:07.5]} 13. Nxc5 {[%clk 0:02:28.5]} 13... Qxc5 {[%clk
0:01:09.4]} 14. Rac1 {[%clk 0:02:11.6]} 14... Qb6 {[%clk 0:01:03.5]} 15. Rfd1
{[%clk 0:02:06.9]} 15... Rd8 {[%clk 0:01:00.2]} 16. Rxd8+ {[%clk 0:02:00.8]}
16... Qxd8 {[%clk 0:00:57]} 17. Bd3 {[%clk 0:01:35.5]} 17... Qb6 {[%clk
0:00:54.7]} 18. Qxb6 {[%clk 0:01:27.4]} 18... axb6 {[%clk 0:00:56.6]} 19. a3
{[%clk 0:01:29.2]} 19... Bd7 {[%clk 0:00:57]} 20. Kf1 {[%clk 0:01:22.2]} 20...
Kf8 {[%clk 0:00:57.5]} 21. Ke2 {[%clk 0:01:21.7]} 21... Ke7 {[%clk 0:00:59.1]}
22. Nd2 {[%clk 0:01:20.1]} 22... Ne5 {[%clk 0:00:45.6]} 23. Be4 {[%clk
0:00:59.6]} 23... Bb5+ {[%clk 0:00:46.3]} 24. Kd1 {[%clk 0:00:58.1]} 24... Bc6
{[%clk 0:00:43.4]} 25. Ke2 {[%clk 0:00:47.5]} 25... Rc8 {[%clk 0:00:37.2]} 26.
Bxc6 {[%clk 0:00:47.8]} 26... bxc6 {[%clk 0:00:36]} 27. f4 {[%clk 0:00:45.6]}
27... Ng4 {[%clk 0:00:36.1]} 28. Kf3 {[%clk 0:00:39.9]} 28... Nf6 {[%clk
0:00:34.9]} 29. Nc4 {[%clk 0:00:41.3]} 29... Nd7 {[%clk 0:00:32.3]} 30. Rd1
{[%clk 0:00:38.4]} 30... Rb8 {[%clk 0:00:29.7]} 31. g4 {[%clk 0:00:33.3]} 31...
b5 {[%clk 0:00:30.3]} 32. Na5 {[%clk 0:00:32.5]} 32... Rb6 {[%clk 0:00:30]} 33.
b4 {[%clk 0:00:28.3]} 33... c5 {[%clk 0:00:26.3]} 34. bxc5 {[%clk 0:00:29.3]}
34... Nxc5 {[%clk 0:00:27.8]} 35. Rc1 {[%clk 0:00:29.8]} 35... Ra6 {[%clk
0:00:24.1]} 36. Rxc5 {[%clk 0:00:27.6]} 36... Rxa5 {[%clk 0:00:25.5]} 37. h4
{[%clk 0:00:26.1]} 37... g6 {[%clk 0:00:21.7]} 38. a4 {[%clk 0:00:24.4]} 38...
Rxa4 {[%clk 0:00:21.9]} 39. Rxb5 {[%clk 0:00:25.6]} 39... Kf6 {[%clk 0:00:23.4]}
40. h5 {[%clk 0:00:26]} 40... gxh5 {[%clk 0:00:22.9]} 41. Rxh5 {[%clk
0:00:25.9]} 41... Kg6 {[%clk 0:00:24.4]} 42. Rh1 {[%clk 0:00:23.8]} 42... Ra2
{[%clk 0:00:24.9]} 43. Rb1 {[%clk 0:00:23]} 43... Ra5 {[%clk 0:00:23.2]} 44. Rb8
{[%clk 0:00:22.9]} 44... Kg7 {[%clk 0:00:23.7]} 45. Rb7 {[%clk 0:00:23.3]} 45...
Rc5 {[%clk 0:00:23.7]} 46. Ra7 {[%clk 0:00:23.4]} 46... Rb5 {[%clk 0:00:24.7]}
47. Rc7 {[%clk 0:00:23.8]} 47... Kg6 {[%clk 0:00:25.2]} 48. Ra7 {[%clk
0:00:24.2]} 48... Rc5 {[%clk 0:00:22.6]} 49. Rb7 {[%clk 0:00:25.1]} 49... Ra5
{[%clk 0:00:23.5]} 50. Rc7 {[%clk 0:00:25.9]} 50... Rb5 {[%clk 0:00:24.5]} 51.
Rd7 {[%clk 0:00:26.8]} 51... Ra5 {[%clk 0:00:25.4]} 52. Rc7 {[%clk 0:00:27.3]}
52... Rb5 {[%clk 0:00:26.3]} 53. Ra7 {[%clk 0:00:27.9]} 53... Rb1 {[%clk
0:00:25.7]} 54. Ra2 {[%clk 0:00:27.5]} 54... Rf1+ {[%clk 0:00:26.3]} 55. Kg2
{[%clk 0:00:27.6]} 55... Re1 {[%clk 0:00:26.6]} 56. Kf3 {[%clk 0:00:27.8]} 56...
Rh1 {[%clk 0:00:26.6]} 57. Kg2 {[%clk 0:00:27.8]} 57... Re1 {[%clk 0:00:27.4]}
58. Kf3 {[%clk 0:00:28.8]} 58... Rf1+ {[%clk 0:00:28.2]} 59. Kg2 {[%clk
0:00:29.2]} 59... Rb1 {[%clk 0:00:29.1]} 60. Kf3 {[%clk 0:00:29.9]} 60... Rh1
{[%clk 0:00:29.7]} 61. Kg2 {[%clk 0:00:30.5]} 61... Rd1 {[%clk 0:00:29.4]} 62.
Kf3 {[%clk 0:00:30.8]} 62... h5 {[%clk 0:00:30.1]} 63. g5 {[%clk 0:00:28.8]}
63... Rg1 {[%clk 0:00:24.3]} 64. Ra8 {[%clk 0:00:24.6]} 64... Kg7 {[%clk
0:00:24]} 65. Ra2 {[%clk 0:00:19.3]} 65... Kg6 {[%clk 0:00:21.3]} 66. Ra8 {[%clk
0:00:19.3]} 66... Kg7 {[%clk 0:00:18.5]} 67. Ra2 {[%clk 0:00:19.7]} 67... Rh1
{[%clk 0:00:19.1]} 68. Kg2 {[%clk 0:00:19.4]} 68... Re1 {[%clk 0:00:19.7]} 69.
Kf2 {[%clk 0:00:18.6]} 69... Rb1 {[%clk 0:00:19]} 70. Kf3 {[%clk 0:00:19.5]}
70... Kg6 {[%clk 0:00:20.1]} 71. Ra8 {[%clk 0:00:19.5]} 71... Rh1 {[%clk
0:00:19]} 72. Rg8+ {[%clk 0:00:19.5]} 72... Kh7 {[%clk 0:00:20]} 73. Rf8 {[%clk
0:00:20]} 73... Kg7 {[%clk 0:00:21.6]} 74. Ra8 {[%clk 0:00:21]} 74... Rh3+
{[%clk 0:00:23.1]} 75. Kf2 {[%clk 0:00:21]} 75... Kg6 {[%clk 0:00:24.3]} 76. Ra7
{[%clk 0:00:17.3]} 76... h4 {[%clk 0:00:24.5]} 77. e4 {[%clk 0:00:13.7]} 77...
Rh2+ {[%clk 0:00:18]} 78. Kf3 {[%clk 0:00:14.2]} 78... Rh1 {[%clk 0:00:18.8]}
79. f5+ {[%clk 0:00:14]} 79... exf5 {[%clk 0:00:16.3]} 80. exf5+ {[%clk
0:00:15.9]} 80... Kxf5 {[%clk 0:00:16.3]} 81. Rxf7+ {[%clk 0:00:16.5]} 81...
Kxg5 {[%clk 0:00:17.7]} 82. Kg2 {[%clk 0:00:17.5]} 82... Ra1 {[%clk 0:00:18.3]}
83. Rg7+ {[%clk 0:00:17.6]} 83... Kh6 {[%clk 0:00:18.7]} 84. Rg8 {[%clk
0:00:18.7]} 84... Ra3 {[%clk 0:00:19.6]} 85. Rh8+ {[%clk 0:00:18.4]} 85... Kg5
{[%clk 0:00:20.8]} 86. Rg8+ {[%clk 0:00:19.5]} 86... Kf4 {[%clk 0:00:18]} 87.
Rf8+ {[%clk 0:00:20.1]} 87... Kg4 {[%clk 0:00:19.2]} 88. Rg8+ {[%clk 0:00:21.2]}
88... Kf4 {[%clk 0:00:20.5]} 89. Rf8+ {[%clk 0:00:21.2]} 89... Kg4 {[%clk
0:00:21.7]} 90. Rg8+ {[%clk 0:00:22.4]} 90... Kf4 {[%clk 0:00:22.9]} 91. Rf8+
{[%clk 0:00:23.6]} 1/2-1/2

[Event "*** Titled Tuesday 3|2 Blitz (Early)"]
[Site "Chess.com"]
[Date "2016.11.01"]
[Round "3"]
[White "Alexander_Moskalenko"]
[Black "gmsakk"]
[Result "1/2-1/2"]
[WhiteElo "2708"]
[BlackElo "2536"]
[TimeControl "180+2"]
[EndTime "11:38:31 PDT"]
[Termination "Game drawn - insufficient material"]

1. Nf3 {[%clk 0:03:00.5]} 1... d5 {[%clk 0:03:01.2]} 2. c4 {[%clk 0:03:02.4]}
2... c6 {[%clk 0:03:02.5]} 3. e3 {[%clk 0:03:03.5]} 3... Nf6 {[%clk 0:03:03.7]}
4. Nc3 {[%clk 0:03:05.1]} 4... a6 {[%clk 0:03:04.5]} 5. b3 {[%clk 0:03:06.1]}
5... g6 {[%clk 0:03:05.4]} 6. Bb2 {[%clk 0:03:07.1]} 6... Bg7 {[%clk 0:03:06.9]}
7. h3 {[%clk 0:03:04.9]} 7... O-O {[%clk 0:03:07.6]} 8. Be2 {[%clk 0:03:05.9]}
8... Ne4 {[%clk 0:02:56.5]} 9. Qc2 {[%clk 0:02:37.2]} 9... Bf5 {[%clk
0:02:10.8]} 10. Nxe4 {[%clk 0:02:37.7]} 10... Bxe4 {[%clk 0:02:07.7]} 11. d3
{[%clk 0:02:38]} 11... Bxf3 {[%clk 0:02:08.3]} 12. Bxf3 {[%clk 0:02:38]} 12...
e6 {[%clk 0:02:09.5]} 13. O-O {[%clk 0:02:29.5]} 13... Nd7 {[%clk 0:02:09.1]}
14. b4 {[%clk 0:02:29.4]} 14... Bxb2 {[%clk 0:02:08.5]} 15. Qxb2 {[%clk
0:02:30.1]} 15... Qf6 {[%clk 0:02:10.2]} 16. Rab1 {[%clk 0:02:24.5]} 16... b5
{[%clk 0:02:06.7]} 17. cxd5 {[%clk 0:02:12.5]} 17... cxd5 {[%clk 0:02:07.5]} 18.
Rfc1 {[%clk 0:01:58.2]} 18... Rfc8 {[%clk 0:02:07.2]} 19. d4 {[%clk 0:01:59.6]}
19... Nb6 {[%clk 0:02:04.1]} 20. Be2 {[%clk 0:01:45.9]} 20... Qe7 {[%clk
0:01:28.3]} 21. Qa3 {[%clk 0:01:36.8]} 21... Nc4 {[%clk 0:01:18.2]} 22. Qc3
{[%clk 0:01:14.5]} 22... Rc7 {[%clk 0:01:13.4]} 23. Bxc4 {[%clk 0:01:14.5]}
23... Rxc4 {[%clk 0:01:14.1]} 24. Qa3 {[%clk 0:01:15.9]} 24... a5 {[%clk
0:01:03]} 25. Rxc4 {[%clk 0:01:16.7]} 25... dxc4 {[%clk 0:01:01.5]} 26. Qc3
{[%clk 0:01:11]} 26... axb4 {[%clk 0:00:54.7]} 27. Rxb4 {[%clk 0:00:59.6]} 27...
Qd7 {[%clk 0:00:48.6]} 28. a3 {[%clk 0:00:45.6]} 28... Qc6 {[%clk 0:00:45]} 29.
e4 {[%clk 0:00:36.8]} 29... Qxe4 {[%clk 0:00:37.9]} 30. Rxb5 {[%clk 0:00:36.9]}
30... Qd3 {[%clk 0:00:26.9]} 31. Qxd3 {[%clk 0:00:31.7]} 31... cxd3 {[%clk
0:00:27.8]} 32. Rb3 {[%clk 0:00:33]} 32... d2 {[%clk 0:00:29.2]} 33. Rd3 {[%clk
0:00:34.4]} 33... Rxa3 {[%clk 0:00:30.8]} 34. Rxd2 {[%clk 0:00:36]} 34... Ra5
{[%clk 0:00:31.9]} 35. f3 {[%clk 0:00:37.3]} 35... Kf8 {[%clk 0:00:32.5]} 36.
Kf2 {[%clk 0:00:38.7]} 36... Ke7 {[%clk 0:00:34]} 37. Ke3 {[%clk 0:00:40]} 37...
Kd6 {[%clk 0:00:35.6]} 38. h4 {[%clk 0:00:41.2]} 38... Ra3+ {[%clk 0:00:34.4]}
39. Kf4 {[%clk 0:00:42.2]} 39... h6 {[%clk 0:00:32.2]} 40. g4 {[%clk 0:00:43.3]}
40... Kd5 {[%clk 0:00:32.5]} 41. g5 {[%clk 0:00:32.2]} 41... hxg5+ {[%clk
0:00:32.8]} 42. hxg5 {[%clk 0:00:32.2]} 42... Rc3 {[%clk 0:00:32.2]} 43. Rb2
{[%clk 0:00:30]} 43... Rc7 {[%clk 0:00:33.2]} 44. Ke3 {[%clk 0:00:28.9]} 44...
Rc3+ {[%clk 0:00:34.2]} 45. Kf4 {[%clk 0:00:29.7]} 45... Rc7 {[%clk 0:00:20.3]}
46. Ke3 {[%clk 0:00:30.6]} 46... Rc3+ {[%clk 0:00:20.4]} 47. Kf4 {[%clk
0:00:31.7]} 47... Rc7 {[%clk 0:00:19.6]} 48. Rb4 {[%clk 0:00:32.2]} 48... Ra7
{[%clk 0:00:17.7]} 49. Ke3 {[%clk 0:00:30.3]} 49... Ra3+ {[%clk 0:00:18.8]} 50.
Kf4 {[%clk 0:00:31.5]} 50... Ra7 {[%clk 0:00:20]} 51. Ke3 {[%clk 0:00:32.7]}
51... Ra3+ {[%clk 0:00:20.6]} 52. Kf4 {[%clk 0:00:34.1]} 52... Ra7 {[%clk
0:00:21.8]} 53. Rb8 {[%clk 0:00:29.9]} 53... Kxd4 {[%clk 0:00:22]} 54. Rd8+
{[%clk 0:00:30.8]} 54... Kc3 {[%clk 0:00:23.3]} 55. Ke4 {[%clk 0:00:24.7]} 55...
Ra5 {[%clk 0:00:24.4]} 56. f4 {[%clk 0:00:25.1]} 56... Rb5 {[%clk 0:00:19.3]}
57. Rd7 {[%clk 0:00:25.5]} 57... Rf5 {[%clk 0:00:20.2]} 58. Rd3+ {[%clk
0:00:26.2]} 58... Kc2 {[%clk 0:00:21.4]} 59. Rd7 {[%clk 0:00:27.6]} 59... Kc3
{[%clk 0:00:22.4]} 60. Rd3+ {[%clk 0:00:27]} 60... Kc2 {[%clk 0:00:23.2]} 61.
Rd7 {[%clk 0:00:28.9]} 61... Kc3 {[%clk 0:00:23.7]} 62. Rd3+ {[%clk 0:00:27.7]}
62... Kc4 {[%clk 0:00:25.1]} 63. Rd7 {[%clk 0:00:25.9]} 63... Kc5 {[%clk
0:00:26.4]} 64. Ra7 {[%clk 0:00:24.5]} 64... Kd6 {[%clk 0:00:27.3]} 65. Rb7
{[%clk 0:00:24.9]} 65... e5 {[%clk 0:00:28.1]} 66. Rb6+ {[%clk 0:00:11.6]} 66...
Ke7 {[%clk 0:00:28]} 67. Rb7+ {[%clk 0:00:11.9]} 67... Kf8 {[%clk 0:00:28]} 68.
fxe5 {[%clk 0:00:13.4]} 68... Rxg5 {[%clk 0:00:29.4]} 69. Rb8+ {[%clk
0:00:14.7]} 69... Kg7 {[%clk 0:00:29.8]} 70. Rb7 {[%clk 0:00:16.6]} 70... Rg1
{[%clk 0:00:27.1]} 71. Kf4 {[%clk 0:00:18]} 71... Re1 {[%clk 0:00:27.6]} 72. Ra7
{[%clk 0:00:19.2]} 72... Rf1+ {[%clk 0:00:25]} 73. Kg4 {[%clk 0:00:19.3]} 73...
Re1 {[%clk 0:00:26.1]} 74. Kf4 {[%clk 0:00:19.7]} 74... Kf8 {[%clk 0:00:27.4]}
75. Ra8+ {[%clk 0:00:20.2]} 75... Ke7 {[%clk 0:00:28.9]} 76. Ra7+ {[%clk
0:00:22.1]} 76... Ke6 {[%clk 0:00:29.3]} 77. Ra6+ {[%clk 0:00:23.4]} 77... Kd5
{[%clk 0:00:30.4]} 78. Ra5+ {[%clk 0:00:24.6]} 78... Kc4 {[%clk 0:00:30]} 79.
Ra7 {[%clk 0:00:23.3]} 79... Rf1+ {[%clk 0:00:27.1]} 80. Ke4 {[%clk 0:00:22.4]}
80... Kc3 {[%clk 0:00:25.3]} 81. Rd7 {[%clk 0:00:20]} 81... g5 {[%clk
0:00:25.7]} 82. Rd3+ {[%clk 0:00:19.4]} 82... Kc4 {[%clk 0:00:26.9]} 83. Rd4+
{[%clk 0:00:19.9]} 83... Kc5 {[%clk 0:00:28.1]} 84. Rd5+ {[%clk 0:00:21.2]}
84... Kc6 {[%clk 0:00:29.6]} 85. Rd8 {[%clk 0:00:21.2]} 85... f5+ {[%clk
0:00:25.9]} 86. exf6 {[%clk 0:00:20.1]} 86... Rxf6 {[%clk 0:00:26.7]} 87. Rg8
{[%clk 0:00:20.7]} 87... Rf4+ {[%clk 0:00:20.3]} 88. Ke5 {[%clk 0:00:21.1]}
88... Rg4 {[%clk 0:00:21.4]} 89. Kf5 {[%clk 0:00:21.6]} 89... Rg1 {[%clk
0:00:22.5]} 90. Rxg5 {[%clk 0:00:23]} 90... Rxg5+ {[%clk 0:00:23.6]} 91. Kxg5
{[%clk 0:00:24.9]} 1/2-1/2